fUSD/lending_fUSD_20240915
["ID","MTS","AMOUNT","RATE_DAILY","PERIOD"]
[338252343,1726441843591,-600.0,0.0001425,2]
[338252345,1726441843601,-600.0,0.0001425,2]
[338252346,1726441843611,-600.0,0.0001425,2]
[338252348,1726441843621,-600.0,0.0001425,2]
[338252350,1726441843631,-600.0,0.0001425,2]
[338252352,1726441843642,-600.0,0.0001425,2]
[338252354,1726441843651,-600.0,0.0001425,2]
[338252355,1726441843662,-600.0,0.0001425,2]
[338252357,1726441843672,-600.0,0.0001425,2]
[338252359,1726441843682,-600.0,0.0001425,2]
[338252361,1726441843693,-600.0,0.0001425,2]
[338252364,1726441843703,-600.0,0.0001425,2]
[338252366,1726441843714,-600.0,0.0001425,2]
[338252368,1726441843725,-600.0,0.0001425,2]
[338252370,1726441843735,-600.0,0.0001425,2]
[338252372,1726441843745,-600.0,0.0001425,2]
[338252374,1726441843756,-600.0,0.0001425,2]
[338252376,1726441843766,-600.0,0.0001425,2]
[338252378,1726441843776,-600.0,0.0001425,2]
[338252380,1726441843786,-600.0,0.0001425,2]
[338252382,1726441843795,-600.0,0.0001425,2]
[338252384,1726441843805,-600.0,0.0001425,2]
[338252385,1726441843814,-600.0,0.0001425,2]
[338252387,1726441843824,-600.0,0.0001425,2]
[338252390,1726441843836,-600.0,0.0001425,2]
[338252392,1726441843846,-600.0,0.0001425,2]
[338252394,1726441843858,-600.0,0.0001425,2]
[338252396,1726441843868,-600.0,0.0001425,2]
[338252398,1726441843879,-600.0,0.0001425,2]
[338252400,1726441843889,-600.0,0.0001425,2]
[338252402,1726441843899,-600.0,0.0001425,2]
[338252403,1726441843908,-600.0,0.0001425,2]
[338252404,1726441843919,-600.0,0.0001425,2]
[338252405,1726441843931,-600.0,0.0001425,2]
[338252406,1726441843942,-600.0,0.0001425,2]
[338252407,1726441843953,-600.0,0.0001425,2]
[338252408,1726441843963,-600.0,0.0001425,2]
[338252409,1726441843974,-600.0,0.0001425,2]
[338252410,1726441843985,-600.0,0.0001425,2]
[338252411,1726441843995,-600.0,0.0001425,2]
[338252412,1726441844006,-600.0,0.0001425,2]
[338252413,1726441844017,-885.80539002,0.0001425,2]
[338252414,1726441844028,-5026.65871,0.0001425,2]
[338252415,1726441844040,-500.0,0.00014251,2]
[338252416,1726441844051,-500.0,0.0001426,2]
[338252417,1726441844061,-500.0,0.00014269,2]
[338252418,1726441844071,-249.39836154,0.00014273,2]
[338252419,1726441844081,-211.4365633,0.00014273,2]
[338252420,1726441844091,-500.0,0.00014273,2]
[338252421,1726441844101,-500.0,0.00014278,2]
[338252422,1726441844111,-500.0,0.00014286,2]
[338252423,1726441844122,-500.0,0.00014295,2]
[338252424,1726441844132,-500.0,0.00014304,2]
[338252425,1726441844143,-203.0,0.0001431,2]
[338252426,1726441844152,-212.0,0.0001431,2]
[338252427,1726441844163,-500.0,0.00014313,2]
[338252428,1726441844174,-500.0,0.00014322,2]
[338252429,1726441844185,-500.0,0.0001433,2]
[338252430,1726441844194,-1546.0,0.00014332,2]
[338252431,1726441844204,-151.0,0.00014339,2]
[338252433,1726441844214,-151.0,0.00014339,2]
[338252434,1726441844224,-151.0,0.00014339,2]
[338252436,1726441844235,-151.0,0.00014339,2]
[338252437,1726441844245,-151.0,0.00014339,2]
[338252439,1726441844254,-182.588246,0.00014339,2]
[338252441,1726441844264,-151.0,0.00014339,2]
[338252443,1726441844274,-151.0,0.00014339,2]
[338252445,1726441844284,-182.588246,0.00014339,2]
[338252447,1726441844294,-276.377044,0.00014339,2]
[338252449,1726441844304,-276.377044,0.00014339,2]
[338252451,1726441844314,-607.122333,0.00014339,2]
[338252453,1726441844324,-607.122333,0.00014339,2]
[338252455,1726441844334,-500.0,0.00014339,2]
[338252457,1726441844344,-500.0,0.00014348,2]
[338252459,1726441844356,-183.994761,0.0001435,2]
[338252461,1726441844366,-500.0,0.00014357,2]
[338252463,1726441844376,-500.0,0.00014366,2]
[338252465,1726441844386,-500.0,0.00014374,2]
[338252468,1726441844407,-500.0,0.00014383,2]
[338252471,1726441844419,-161.07753318,0.00014384,2]
[338252473,1726441844429,-854.35,0.00014384,2]
[338252475,1726441844440,-1363.52,0.0001439,2]
[338252477,1726441844451,-2383.4,0.0001439,2]
[338252479,1726441844462,-500.0,0.0001439,2]
[338252481,1726441844473,-1069.49,0.0001439,2]
[338252483,1726441844483,-960.8,0.0001439,2]
[338252485,1726441844494,-151.0,0.0001439,2]
[338252487,1726441844504,-151.0,0.0001439,2]
[338252489,1726441844516,-500.0,0.00014392,2]
[338252491,1726441844527,-1000.0,0.000144,4]
[338252494,1726441844538,-1000.0,0.000144,4]
[338252496,1726441844549,-500.0,0.00014401,2]
[338252498,1726441844560,-4057.5,0.00014407,2]
[338252500,1726441844570,-500.0,0.00014407,2]
[338252502,1726441844581,-151.0,0.00014407,2]
[338252504,1726441844593,-199.112191,0.00014407,2]
[338252506,1726441844603,-26520.99632,0.00014408,2]
[338252508,1726441844613,-6630.249081,0.00014408,2]
[338252510,1726441844624,-35751.526646,0.00014408,2]
[338252512,1726441844634,-1610.805947,0.00014408,2]
[338252514,1726441844645,-971.881423,0.00014408,2]
[338252516,1726441844656,-500.0,0.0001441,2]
[338252518,1726441844666,-500.0,0.00014418,2]
[338252520,1726441844677,-150.0,0.0001442,2]
[338252522,1726441844687,-152.0,0.00014426,4]
[338252524,1726441844698,-500.0,0.00014427,2]
[338252526,1726441844708,-500.0,0.00014436,2]
[338252528,1726441844719,-500.0,0.00014445,2]
[338252531,1726441844730,-500.0,0.00014454,2]
[338252533,1726441844742,-3327.66,0.00014455,2]
[338252535,1726441844755,-3555.11,0.00014455,2]
[338252537,1726441844765,-4180.3,0.00014455,2]
[338252539,1726441844776,-7111.5,0.00014455,2]
[338252541,1726441844787,-2774.44,0.00014455,2]
[338252543,1726441844797,-500.0,0.00014455,2]
[338252545,1726441844807,-2946.8,0.00014455,2]
[338252547,1726441844818,-500.0,0.00014462,2]
[338252550,1726441844830,-500.0,0.00014471,2]
[338252552,1726441844841,-500.0,0.0001448,2]
[338252554,1726441844851,-203.0,0.0001448,2]
[338252556,1726441844862,-212.0,0.0001448,2]
[338252558,1726441844872,-500.0,0.00014489,2]
[338252560,1726441844883,-500.0,0.00014498,2]
[338252562,1726441844893,-200.62,0.000145,15]
[338252564,1726441844903,-500.0,0.00014506,2]
[338252566,1726441844913,-500.0,0.00014515,2]
[338252568,1726441844940,-1000.0,0.00014521,2]
[338252570,1726441844952,-1000.0,0.00014521,2]
[338252572,1726441844963,-663.248485,0.00014521,2]
[338252574,1726441844974,-500.0,0.00014524,2]
[338252576,1726441844984,-1000.0,0.00014532,2]
[338252579,1726441844995,-500.0,0.00014533,2]
[338252580,1726441845004,-600.0,0.0001454,2]
[338252583,1726441845015,-500.0,0.00014542,2]
[338252585,1726441845025,-1000.0,0.00014544,2]
[338252587,1726441845035,-600.0,0.0001455,2]
[338252589,1726441845045,-600.0,0.0001455,2]
[338252591,1726441845054,-500.0,0.0001455,2]
[338252593,1726441845064,-1000.0,0.00014556,2]
[338252595,1726441845075,-500.0,0.00014559,2]
[338252597,1726441845085,-500.0,0.00014568,2]
[338252599,1726441845095,-1000.0,0.00014568,2]
[338252601,1726441845105,-300.0,0.00014573,2]
[338252603,1726441845114,-151.0,0.00014575,2]
[338252605,1726441845124,-151.0,0.00014575,2]
[338252607,1726441845133,-151.0,0.00014575,2]
[338252609,1726441845143,-151.0,0.00014575,2]
[338252611,1726441845153,-151.0,0.00014575,2]
[338252613,1726441845162,-151.0,0.00014575,2]
[338252615,1726441845173,-151.0,0.00014575,2]
[338252617,1726441845182,-151.0,0.00014575,2]
[338252619,1726441845193,-151.0,0.00014575,2]
[338252621,1726441845203,-182.588246,0.00014575,2]
[338252623,1726441845213,-177.2,0.00014575,2]
[338252625,1726441845223,-182.588246,0.00014575,2]
[338252627,1726441845233,-276.377044,0.00014575,2]
[338252629,1726441845243,-276.377044,0.00014575,2]
[338252631,1726441845253,-607.122333,0.00014575,2]
[338252633,1726441845263,-607.122333,0.00014575,2]
[338252635,1726441845273,-161.07753318,0.00014575,2]
[338252637,1726441845284,-581.0,0.00014575,2]
[338252639,1726441845294,-108048.0,0.00014575,2]
[338252641,1726441845304,-500.0,0.00014577,2]
[338252643,1726441845315,-3923.97,0.00014579,2]
[338252646,1726441845327,-500.0,0.00014579,2]
[338252648,1726441845337,-2481.83,0.00014579,2]
[338252650,1726441845347,-1678.15,0.00014579,2]
[338252652,1726441845358,-1363.52,0.0001458,2]
[338252654,1726441845368,-1076.42,0.0001458,2]
[338252656,1726441845378,-991.46,0.0001458,2]
[338252658,1726441845389,-500.0,0.0001458,2]
[338252660,1726441845399,-2383.4,0.0001458,2]
[338252662,1726441845410,-2583.01,0.0001458,2]
[338252664,1726441845420,-2083.63,0.0001458,2]
[338252666,1726441845430,-2053.95,0.0001458,2]
[338252668,1726441845441,-500.0,0.0001458,2]
[338252670,1726441845451,-2449.38,0.0001458,2]
[338252672,1726441845461,-1069.49,0.0001458,2]
[338252674,1726441845471,-7953.64,0.0001458,2]
[338252677,1726441845481,-509.08,0.0001458,2]
[338252679,1726441845491,-2383.94,0.0001458,2]
[338252681,1726441845501,-960.8,0.0001458,2]
[338252683,1726441845511,-1982.23,0.0001458,2]
[338252685,1726441845521,-500.0,0.0001458,2]
[338252687,1726441845531,-1000.0,0.0001458,2]
[338252689,1726441845541,-151.0,0.00014581,2]
[338252691,1726441845551,-151.0,0.00014581,2]
[338252693,1726441845562,-175.257202,0.00014581,2]
[338252695,1726441845573,-151.0,0.00014581,2]
[338252697,1726441845583,-151.0,0.00014581,2]
[338252699,1726441845594,-151.0,0.00014581,2]
[338252701,1726441845604,-182.588246,0.00014581,2]
[338252703,1726441845613,-182.588246,0.00014581,2]
[338252705,1726441845624,-276.377044,0.00014581,2]
[338252707,1726441845634,-276.377044,0.00014581,2]
[338252709,1726441845644,-607.122333,0.00014581,2]
[338252711,1726441845655,-607.122333,0.00014581,2]
[338252713,1726441845665,-26520.99632,0.00014581,2]
[338252715,1726441845675,-6630.249081,0.00014581,2]
[338252717,1726441845686,-35751.526646,0.00014581,2]
[338252719,1726441845696,-1610.805947,0.00014581,2]
[338252721,1726441845706,-971.881423,0.00014581,2]
[338252723,1726441845716,-183.994761,0.00014581,2]
[338252726,1726441845727,-500.0,0.00014586,2]
[338252727,1726441845737,-1000.0,0.00014592,2]
[338252729,1726441845747,-500.0,0.00014594,2]
[338252732,1726441845758,-500.0,0.00014603,2]
[338252734,1726441845768,-1000.0,0.00014604,2]
[338252736,1726441845778,-500.0,0.00014612,2]
[338252738,1726441845788,-1000.0,0.00014616,2]
[338252740,1726441845798,-500.0,0.00014621,2]
[338252742,1726441845808,-1000.0,0.00014628,2]
[338252744,1726441845817,-500.0,0.0001463,2]
[338252746,1726441845828,-500.0,0.00014638,2]
[338252749,1726441845837,-1000.0,0.0001464,2]
[338252751,1726441845847,-500.0,0.00014644,2]
[338252753,1726441845857,-11773.39422813,0.00014646,2]
[338252755,1726441845868,-500.0,0.00014647,2]
[338252757,1726441845878,-1000.0,0.00014652,2]
[338252759,1726441845889,-500.0,0.00014653,2]
[338252761,1726441845899,-219.97,0.00014655,2]
[338252763,1726441845909,-500.0,0.00014656,2]
[338252765,1726441845920,-203.0,0.0001466,2]
[338252767,1726441845930,-212.0,0.0001466,2]
[338252769,1726441845941,-349.32549668,0.0001466,2]
[338252771,1726441845953,-500.0,0.00014662,2]
[338252773,1726441845963,-1000.0,0.00014663,2]
[338252776,1726441845974,-500.0,0.00014665,2]
[338252777,1726441845984,-500.0,0.00014671,2]
[338252780,1726441845994,-500.0,0.00014674,2]
[338252781,1726441846004,-1000.0,0.00014675,2]
[338252783,1726441846014,-299.61211013,0.00014677,2]
[338252785,1726441846026,-5578.2523665,0.00014679,2]
[338252788,1726441846037,-500.0,0.0001468,2]
[338252790,1726441846046,-500.0,0.00014682,2]
[338252792,1726441846056,-1000.0,0.00014687,2]
[338252793,1726441846066,-500.0,0.00014688,2]
[338252795,1726441846075,-500.0,0.00014691,2]
[338252797,1726441846085,-500.0,0.00014697,2]
[338252799,1726441846095,-4057.5,0.00014699,2]
[338252801,1726441846105,-1000.0,0.00014699,2]
[338252803,1726441846114,-1000.0,0.000147,2]
[338252805,1726441846124,-1000.0,0.000147,2]
[338252807,1726441846134,-1000.0,0.000147,2]
[338252809,1726441846143,-1000.0,0.000147,2]
[338252811,1726441846153,-1000.0,0.000147,2]
[338252813,1726441846162,-1000.0,0.000147,2]
[338252815,1726441846171,-1000.0,0.000147,2]
[338252817,1726441846181,-1000.0,0.000147,2]
[338252819,1726441846190,-1000.0,0.000147,2]
[338252821,1726441846200,-1000.0,0.000147,2]
[338252823,1726441846209,-200.1,0.000147,2]
[338252825,1726441846218,-500.0,0.000147,2]
[338252827,1726441846228,-200.1,0.000147,2]
[338252829,1726441846238,-200.1,0.000147,2]
[338252831,1726441846249,-150.0,0.000147,2]
[338252833,1726441846259,-796.0,0.00014703,2]
[338252836,1726441846269,-500.0,0.00014706,2]
[338252838,1726441846278,-1000.0,0.00014711,2]
[338252839,1726441846288,-3923.97,0.00014714,2]
[338252842,1726441846298,-500.0,0.00014714,2]
[338252844,1726441846307,-2481.83,0.00014714,2]
[338252846,1726441846317,-1678.15,0.00014714,2]
[338252848,1726441846327,-500.0,0.00014715,2]
[338252850,1726441846338,-1000.0,0.00014723,2]
[338252852,1726441846347,-500.0,0.00014724,2]
[338252854,1726441846357,-500.0,0.00014732,2]
[338252856,1726441846367,-1000.0,0.00014735,2]
[338252858,1726441846377,-1363.52,0.00014739,2]
[338252860,1726441846387,-1076.42,0.00014739,2]
[338252862,1726441846397,-991.46,0.00014739,2]
[338252864,1726441846407,-3327.66,0.00014739,2]
[338252866,1726441846416,-478.64,0.00014739,2]
[338252868,1726441846426,-3555.11,0.00014739,2]
[338252870,1726441846436,-2383.4,0.00014739,2]
[338252872,1726441846445,-2583.01,0.00014739,2]
[338252874,1726441846455,-4180.3,0.00014739,2]
[338252876,1726441846465,-2083.63,0.00014739,2]
[338252878,1726441846475,-2053.95,0.00014739,2]
[338252880,1726441846485,-500.0,0.00014739,2]
[338252882,1726441846495,-2449.38,0.00014739,2]
[338252885,1726441846505,-7111.5,0.00014739,2]
[338252887,1726441846514,-2774.44,0.00014739,2]
[338252889,1726441846524,-1069.49,0.00014739,2]
[338252891,1726441846534,-539.775548,0.00014739,2]
[338252893,1726441846543,-7953.64,0.00014739,2]
[338252895,1726441846553,-2946.8,0.00014739,2]
[338252897,1726441846564,-509.08,0.00014739,2]
[338252899,1726441846574,-2383.94,0.00014739,2]
[338252901,1726441846583,-960.8,0.00014739,2]
[338252903,1726441846593,-1982.23,0.00014739,2]
[338252905,1726441846603,-500.0,0.00014739,2]
[338252907,1726441846612,-176.55999,0.00014739,2]
[338252909,1726441846622,-151.0,0.00014739,2]
[338252911,1726441846632,-274.615934,0.00014739,2]
[338252913,1726441846643,-291.0,0.0001474,2]
[338252915,1726441846655,-152594.76571017,0.0001474,2]
[338252917,1726441846664,-107646.26982519,0.0001474,2]
[338252919,1726441846674,-151.0,0.0001474,2]
[338252921,1726441846684,-151.0,0.0001474,2]
[338252923,1726441846693,-658.765773,0.0001474,2]
[338252925,1726441846704,-151.0,0.0001474,2]
[338252927,1726441846713,-151.0,0.0001474,2]
[338252929,1726441846723,-151.0,0.0001474,2]
[338252931,1726441846731,-151.0,0.0001474,2]
[338252933,1726441846741,-182.588246,0.0001474,2]
[338252935,1726441846750,-182.588246,0.0001474,2]
[338252937,1726441846760,-276.377044,0.0001474,2]
[338252939,1726441846770,-276.377044,0.0001474,2]
[338252941,1726441846780,-607.122333,0.0001474,2]
[338252943,1726441846789,-607.122333,0.0001474,2]
[338252945,1726441846799,-500.0,0.00014741,2]
[338252947,1726441846808,-1000.0,0.00014747,2]
[338252949,1726441846819,-500.0,0.0001475,2]
[338252951,1726441846828,-1000.0,0.00014759,2]
[338252953,1726441846837,-500.0,0.00014759,2]
[338252955,1726441846849,-701.89695245,0.00014767,2]
[338252957,1726441846859,-254.66736997,0.00014767,2]
[338252959,1726441846869,-150.0,0.00014767,2]
[338252961,1726441846879,-150.0,0.00014767,2]
[338252963,1726441846888,-321.68297984,0.00014767,2]
[338252990,1726441847132,-150.0,0.00014767,2]
[338252992,1726441847142,-150.0,0.00014767,2]
[338252994,1726441847152,-150.0,0.00014767,2]
[338252996,1726441847162,-150.0,0.00014767,2]
[338252998,1726441847171,-150.0,0.00014767,2]
[338253000,1726441847181,-150.0,0.00014767,2]
[338253002,1726441847190,-150.0,0.00014767,2]
[338253004,1726441847199,-150.0,0.00014767,2]
[338253005,1726441847209,-150.0,0.00014767,2]
[338253008,1726441847219,-161.07753318,0.00014767,2]
[338253009,1726441847228,-500.0,0.00014768,2]
[338253011,1726441847238,-701.89695245,0.00014769,2]
[338253013,1726441847248,-254.66736997,0.00014769,2]
[338253015,1726441847258,-321.68297984,0.00014769,2]
[338253017,1726441847268,-1000.0,0.00014771,2]
[338253019,1726441847278,-150.0,0.00014771,2]
[338253021,1726441847288,-701.89695245,0.00014772,2]
[338253023,1726441847298,-254.66736997,0.00014772,2]
[338253026,1726441847307,-321.68297984,0.00014772,2]
[338253027,1726441847317,-701.89695245,0.00014774,2]
[338253030,1726441847327,-254.66736997,0.00014774,2]
[338253031,1726441847336,-321.68297984,0.00014774,2]
[338253033,1726441847346,-150.0,0.00014775,2]
[338253035,1726441847355,-500.0,0.00014776,2]
[338253037,1726441847365,-701.89695245,0.00014777,2]
[338253039,1726441847374,-254.66736997,0.00014777,2]
[338253041,1726441847383,-321.68297984,0.00014777,2]
[338253043,1726441847393,-701.89695245,0.00014779,2]
[338253045,1726441847402,-254.66736997,0.00014779,2]
[338253048,1726441847413,-321.68297984,0.00014779,2]
[338253050,1726441847422,-150.0,0.0001478,2]
[338253052,1726441847432,-150.0,0.0001478,2]
[338253054,1726441847441,-701.89695245,0.00014781,2]
[338253056,1726441847450,-254.66736997,0.00014781,2]
[338253058,1726441847460,-321.68297984,0.00014781,2]
[338253060,1726441847469,-1000.0,0.00014783,2]
[338253062,1726441847480,-4057.5,0.00014783,2]
[338253064,1726441847489,-701.89695245,0.00014784,2]
[338253066,1726441847499,-254.66736997,0.00014784,2]
[338253067,1726441847508,-321.68297984,0.00014784,2]
[338253069,1726441847518,-150.0,0.00014784,2]
[338253072,1726441847529,-150.0,0.00014784,2]
[338253074,1726441847538,-500.0,0.00014785,2]
[338253075,1726441847548,-35000.0,0.00014785,2]
[338253077,1726441847558,-701.89695245,0.00014786,2]
[338253079,1726441847567,-254.66736997,0.00014786,2]
[338253081,1726441847577,-321.68297984,0.00014786,2]
[338253083,1726441847586,-150.0,0.00014788,2]
[338253085,1726441847596,-701.89695245,0.00014788,2]
[338253087,1726441847605,-254.66736997,0.00014788,2]
[338253089,1726441847614,-321.68297984,0.00014788,2]
[338253091,1726441847624,-701.89695245,0.00014791,2]
[338253093,1726441847634,-254.66736997,0.00014791,2]
[338253095,1726441847645,-321.68297984,0.00014791,2]
[338253097,1726441847655,-150.0,0.00014792,2]
[338253099,1726441847667,-701.89695245,0.00014793,2]
[338253101,1726441847677,-254.66736997,0.00014793,2]
[338253103,1726441847687,-321.68297984,0.00014793,2]
[338253105,1726441847695,-3923.97,0.00014793,2]
[338253107,1726441847705,-3923.97,0.00014793,2]
[338253109,1726441847715,-3923.97,0.00014793,2]
[338253111,1726441847724,-3923.97,0.00014793,2]
[338253113,1726441847734,-3923.97,0.00014793,2]
[338253115,1726441847744,-3923.97,0.00014793,2]
[338253117,1726441847753,-3923.97,0.00014793,2]
[338253119,1726441847763,-3923.97,0.00014793,2]
[338253121,1726441847772,-3923.97,0.00014793,2]
[338253124,1726441847782,-3924.20975434,0.00014793,2]
[338253126,1726441847792,-1363.52,0.00014793,2]
[338253128,1726441847801,-1363.52,0.00014793,2]
[338253130,1726441847811,-1363.52,0.00014793,2]
[338253131,1726441847820,-1076.42,0.00014793,2]
[338253132,1726441847830,-1363.52,0.00014793,2]
[338253133,1726441847841,-1076.42,0.00014793,2]
[338253134,1726441847852,-1363.52,0.00014793,2]
[338253135,1726441847862,-1076.42,0.00014793,2]
[338253136,1726441847871,-1363.52,0.00014793,2]
[338253137,1726441847882,-1076.42,0.00014793,2]
[338253138,1726441847891,-1363.52,0.00014793,2]
[338253139,1726441847903,-1076.42,0.00014793,2]
[338253140,1726441847913,-991.46,0.00014793,2]
[338253141,1726441847923,-1363.52,0.00014793,2]
[338253142,1726441847935,-1076.42,0.00014793,2]
[338253143,1726441847948,-991.46,0.00014793,2]
[338253144,1726441847959,-1363.52,0.00014793,2]
[338253145,1726441847969,-1076.42,0.00014793,2]
[338253146,1726441847978,-991.46,0.00014793,2]
[338253148,1726441847988,-1363.56689934,0.00014793,2]
[338253150,1726441847997,-1076.42,0.00014793,2]
[338253152,1726441848007,-991.46,0.00014793,2]
[338253153,1726441848017,-1076.42,0.00014793,2]
[338253156,1726441848026,-991.46,0.00014793,2]
[338253158,1726441848036,-1076.45379424,0.00014793,2]
[338253160,1726441848046,-3327.66,0.00014793,2]
[338253162,1726441848056,-991.46,0.00014793,2]
[338253164,1726441848066,-991.46,0.00014793,2]
[338253166,1726441848076,-3327.66,0.00014793,2]
[338253168,1726441848086,-3327.66,0.00014793,2]
[338253170,1726441848095,-991.46,0.00014793,2]
[338253172,1726441848106,-991.56892799,0.00014793,2]
[338253174,1726441848116,-3327.66,0.00014793,2]
[338253176,1726441848127,-3327.66,0.00014793,2]
[338253178,1726441848138,-3327.66,0.00014793,2]
[338253180,1726441848148,-3327.66,0.00014793,2]
[338253182,1726441848158,-3327.66,0.00014793,2]
[338253184,1726441848168,-3327.66,0.00014793,2]
[338253186,1726441848178,-3327.80941215,0.00014793,2]
[338253188,1726441848189,-500.0,0.00014793,2]
[338253190,1726441848199,-3555.11,0.00014793,2]
[338253192,1726441848209,-3555.11,0.00014793,2]
[338253194,1726441848219,-500.0,0.00014793,2]
[338253196,1726441848228,-3555.11,0.00014793,2]
[338253198,1726441848238,-500.0,0.00014793,2]
[338253200,1726441848248,-3555.11,0.00014793,2]
[338253202,1726441848258,-500.0,0.00014793,2]
[338253204,1726441848267,-3555.11,0.00014793,2]
[338253206,1726441848277,-4057.5,0.00014793,2]
[338253208,1726441848287,-177.2322385,0.00014793,2]
[338253210,1726441848297,-3555.11,0.00014793,2]
[338253212,1726441848306,-4057.5,0.00014793,2]
[338253214,1726441848316,-3555.11,0.00014793,2]
[338253216,1726441848325,-4057.5,0.00014793,2]
[338253218,1726441848335,-3555.11,0.00014793,2]
[338253220,1726441848345,-4057.5,0.00014793,2]
[338253222,1726441848354,-2383.4,0.00014793,2]
[338253224,1726441848364,-3555.11,0.00014793,2]
[338253226,1726441848374,-2383.4,0.00014793,2]
[338253228,1726441848384,-4057.5,0.00014793,2]
[338253230,1726441848395,-3555.24938932,0.00014793,2]
[338253232,1726441848405,-2383.4,0.00014793,2]
[338253234,1726441848415,-4057.5,0.00014793,2]
[338253236,1726441848426,-4057.5,0.00014793,2]
[338253238,1726441848436,-2383.4,0.00014793,2]
[338253240,1726441848446,-2383.4,0.00014793,2]
[338253242,1726441848457,-4057.58762452,0.00014793,2]
[338253244,1726441848468,-2383.4,0.00014793,2]
[338253246,1726441848479,-2383.4,0.00014793,2]
[338253248,1726441848488,-2383.4,0.00014793,2]
[338253250,1726441848499,-2583.01,0.00014793,2]
[338253252,1726441848510,-2383.4,0.00014793,2]
[338253254,1726441848520,-2583.01,0.00014793,2]
[338253256,1726441848531,-2383.41172698,0.00014793,2]
[338253258,1726441848541,-2583.01,0.00014793,2]
[338253260,1726441848551,-2583.01,0.00014793,2]
[338253262,1726441848560,-2583.01,0.00014793,2]
[338253264,1726441848569,-2583.01,0.00014793,2]
[338253266,1726441848579,-2583.01,0.00014793,2]
[338253268,1726441848589,-2583.01,0.00014793,2]
[338253270,1726441848600,-2583.16112477,0.00014793,2]
[338253272,1726441848611,-4180.3,0.00014793,2]
[338253274,1726441848623,-4180.3,0.00014793,2]
[338253276,1726441848634,-4180.3,0.00014793,2]
[338253278,1726441848645,-4180.3,0.00014793,2]
[338253280,1726441848656,-4180.3,0.00014793,2]
[338253282,1726441848667,-4180.3,0.00014793,2]
[338253284,1726441848678,-4180.3,0.00014793,2]
[338253286,1726441848693,-4180.3,0.00014793,2]
[338253289,1726441848705,-4180.3,0.00014793,2]
[338253291,1726441848715,-4180.53567517,0.00014793,2]
[338253293,1726441848726,-2083.63,0.00014793,2]
[338253295,1726441848738,-2083.63,0.00014793,2]
[338253297,1726441848748,-2083.63,0.00014793,2]
[338253299,1726441848758,-2083.63,0.00014793,2]
[338253301,1726441848768,-2083.63,0.00014793,2]
[338253303,1726441848778,-2053.95,0.00014793,2]
[338253305,1726441848790,-2083.63,0.00014793,2]
[338253306,1726441848800,-2053.95,0.00014793,2]
[338253308,1726441848811,-2083.63,0.00014793,2]
[338253310,1726441848821,-2053.95,0.00014793,2]
[338253312,1726441848832,-2083.63,0.00014793,2]
[338253315,1726441848843,-2053.95,0.00014793,2]
[338253316,1726441848853,-2083.82021178,0.00014793,2]
[338253318,1726441848863,-500.0,0.00014793,2]
[338253320,1726441848872,-2053.95,0.00014793,2]
[338253322,1726441848883,-500.0,0.00014793,2]
[338253324,1726441848893,-2053.95,0.00014793,2]
[338253326,1726441848904,-500.0,0.00014793,2]
[338253328,1726441848914,-2449.38,0.00014793,2]
[338253331,1726441848925,-2053.95,0.00014793,2]